fUST/lending_fUST_20241211
["ID","MTS","AMOUNT","RATE_DAILY","PERIOD"]
[344909000,1733868642717,-545.0,0.0003,20]
[344909001,1733868642726,-545.0,0.0003,20]
[344909002,1733868642736,-1000.0,0.0003,2]
[344909003,1733868642745,-619.05,0.0003,2]
[344909004,1733868642755,-240.81,0.0003,31]
[344909005,1733868642765,-240.81,0.0003,31]
[344909006,1733868642775,-240.81,0.0003,31]
[344909007,1733868642784,-240.81,0.0003,31]
[344909008,1733868642793,-240.81,0.0003,31]
[344909009,1733868642803,-240.81,0.0003,31]
[344909010,1733868642812,-240.81,0.0003,31]
[344909011,1733868642821,-240.81,0.0003,31]
[344909012,1733868642831,-240.81,0.0003,31]
[344909013,1733868642841,-240.81,0.0003,31]
[344909014,1733868642850,-240.81,0.0003,31]
[344909015,1733868642859,-240.81,0.0003,31]
[344909016,1733868642868,-240.81,0.0003,31]
[344909017,1733868642878,-240.81,0.0003,31]
[344909018,1733868642997,-240.81,0.0003,31]
[344909019,1733868643006,-240.81,0.0003,31]
[344909020,1733868643015,-240.81,0.0003,31]
[344909021,1733868643025,-240.81,0.0003,31]
[344909022,1733868643034,-240.81,0.0003,31]
[344909023,1733868643043,-240.81,0.0003,31]
[344909025,1733868643053,-240.81,0.0003,31]
[344909027,1733868643062,-240.81,0.0003,31]
[344909028,1733868643071,-240.81,0.0003,31]
[344909029,1733868643081,-240.81,0.0003,31]
[344909031,1733868643090,-286.0,0.0003,2]
[344909032,1733868643099,-166.140386,0.0003,31]
[344909033,1733868643110,-500.0,0.0003,32]
[344909034,1733868643119,-1000.0,0.00030003,2]
[344909035,1733868643128,-7914.66426906,0.00030015,7]
[344909037,1733868643137,-500.0,0.00030022,7]
[344909038,1733868643148,-500.0,0.00030022,7]
[344909039,1733868643157,-1500.0,0.00030022,5]
[344909040,1733868643167,-151.0,0.00030023,7]
[344909041,1733868643176,-151.0,0.00030023,7]
[344909043,1733868643186,-151.0,0.00030023,7]
[344909045,1733868643195,-151.0,0.00030023,7]
[344909046,1733868643207,-151.0,0.00030023,7]
[344909047,1733868643216,-151.0,0.00030023,7]
[344909049,1733868643226,-151.0,0.00030023,7]
[344909050,1733868643236,-151.0,0.00030023,7]
[344909051,1733868643245,-151.0,0.00030023,7]
[344909052,1733868643255,-151.0,0.00030023,7]
[344909053,1733868643265,-151.0,0.00030023,7]
[344909054,1733868643275,-151.0,0.00030023,7]
[344909055,1733868643284,-151.0,0.00030023,7]
[344909056,1733868643293,-151.0,0.00030023,7]
[344909057,1733868643302,-151.0,0.00030023,7]
[344909058,1733868643311,-185.04553,0.00030023,7]
[344909059,1733868643320,-151.0,0.00030023,7]
[344909060,1733868643330,-151.0,0.00030023,7]
[344909061,1733868643339,-152.126907,0.00030023,7]
[344909062,1733868643348,-151.0,0.00030023,7]
[344909063,1733868643357,-151.0,0.00030023,7]
[344909064,1733868643366,-151.0,0.00030023,7]
[344909066,1733868643376,-151.0,0.00030023,7]
[344909068,1733868643385,-151.0,0.00030023,7]
[344909070,1733868643394,-151.0,0.00030023,7]
[344909072,1733868643403,-151.0,0.00030023,7]
[344909073,1733868643412,-151.0,0.00030023,7]
[344909074,1733868643422,-151.0,0.00030023,7]
[344909075,1733868643431,-238.437334,0.00030023,7]
[344909076,1733868643440,-151.0,0.00030023,7]
[344909077,1733868643451,-151.0,0.00030023,7]
[344909078,1733868643460,-151.0,0.00030023,7]
[344909079,1733868643470,-151.0,0.00030023,7]
[344909080,1733868643481,-151.0,0.00030023,7]
[344909081,1733868643491,-151.0,0.00030023,7]
[344909082,1733868643501,-151.0,0.00030023,7]
[344909083,1733868643510,-151.0,0.00030023,7]
[344909084,1733868643520,-151.0,0.00030023,7]
[344909085,1733868643529,-151.0,0.00030023,7]
[344909086,1733868643538,-151.0,0.00030023,7]
[344909087,1733868643548,-151.0,0.00030023,7]
[344909088,1733868643557,-151.0,0.00030023,7]
[344909089,1733868643567,-181.726594,0.00030023,7]
[344909090,1733868643577,-181.726594,0.00030023,7]
[344909091,1733868643586,-181.726594,0.00030023,7]
[344909092,1733868643595,-181.726594,0.00030023,7]
[344909094,1733868643604,-181.726594,0.00030023,7]
[344909096,1733868643614,-181.726594,0.00030023,7]
[344909098,1733868643623,-181.726594,0.00030023,7]
[344909100,1733868643632,-181.726594,0.00030023,7]
[344909101,1733868643641,-181.726594,0.00030023,7]
[344909102,1733868643650,-181.726594,0.00030023,7]
[344909103,1733868643660,-181.726594,0.00030023,7]
[344909104,1733868643669,-181.726594,0.00030023,7]
[344909105,1733868643678,-181.726594,0.00030023,7]
[344909106,1733868643688,-181.726594,0.00030023,7]
[344909107,1733868643697,-181.726594,0.00030023,7]
[344909108,1733868643708,-181.726594,0.00030023,7]
[344909109,1733868643717,-181.726594,0.00030023,7]
[344909110,1733868643726,-181.726594,0.00030023,7]
[344909111,1733868643735,-181.726594,0.00030023,7]
[344909112,1733868643745,-181.72659,0.00030023,7]
[344909113,1733868643754,-183.93317843,0.00030023,7]
[344909114,1733868643763,-153.0,0.00030027,30]
[344909115,1733868643773,-153.0,0.00030027,30]
[344909116,1733868643782,-152.9301462,0.00030027,30]
[344909117,1733868643791,-152.9301462,0.00030027,30]
[344909118,1733868643801,-152.9301462,0.00030027,30]
[344909119,1733868643810,-152.9301462,0.00030027,30]
[344909120,1733868643819,-213.5058504,0.00030027,30]
[344909121,1733868643829,-393.9946467,0.00030027,30]
[344909122,1733868643838,-318.7921254,0.00030027,30]
[344909123,1733868643847,-427.0117008,0.00030027,30]
[344909124,1733868643856,-153.0,0.00030027,30]
[344909125,1733868643865,-213.5058504,0.00030027,30]
[344909126,1733868643874,-302.75782099,0.00030028,2]
[344909127,1733868643883,-300.02,0.00030029,2]
[344909128,1733868643893,-151.0,0.0003003,7]
[344909129,1733868643902,-152.318665,0.0003003,7]
[344909130,1733868643911,-151.0,0.0003003,7]
[344909131,1733868643921,-151.0,0.0003003,7]
[344909132,1733868643930,-151.0,0.0003003,7]
[344909133,1733868643939,-151.0,0.0003003,7]
[344909134,1733868643950,-151.0,0.0003003,7]
[344909135,1733868643960,-176.155073,0.0003003,7]
[344909136,1733868643970,-176.155073,0.0003003,7]
[344909137,1733868643979,-176.155073,0.0003003,7]
[344909138,1733868643988,-176.155073,0.0003003,7]
[344909139,1733868643997,-176.155073,0.0003003,7]
[344909140,1733868644006,-176.155073,0.0003003,7]
[344909141,1733868644015,-176.155073,0.0003003,7]
[344909142,1733868644024,-176.155073,0.0003003,7]
[344909143,1733868644034,-176.155073,0.0003003,7]
[344909144,1733868644043,-176.155073,0.0003003,7]
[344909145,1733868644052,-176.155073,0.0003003,7]
[344909146,1733868644061,-176.155073,0.0003003,7]
[344909147,1733868644071,-176.155073,0.0003003,7]
[344909148,1733868644080,-176.155073,0.0003003,7]
[344909149,1733868644089,-176.155073,0.0003003,7]
[344909150,1733868644099,-176.155073,0.0003003,7]
[344909151,1733868644108,-176.155073,0.0003003,7]
[344909152,1733868644117,-176.155073,0.0003003,7]
[344909153,1733868644127,-176.155073,0.0003003,7]
[344909154,1733868644136,-176.155071,0.0003003,7]
[344909155,1733868644145,-151.0,0.0003003,7]
[344909156,1733868644155,-151.0,0.0003003,7]
[344909157,1733868644164,-151.0,0.0003003,7]
[344909158,1733868644173,-151.0,0.0003003,7]
[344909159,1733868644181,-283.68899,0.0003003,7]
[344909160,1733868644191,-501.93500341,0.0003003,11]
[344909161,1733868644202,-500.0,0.0003003,11]
[344909162,1733868644212,-3200.0,0.0003003,2]
[344909163,1733868644221,-150.175,0.0003003,2]
[344909164,1733868644230,-150.0,0.0003003,2]
[344909165,1733868644239,-532.0,0.0003003,2]
[344909166,1733868644248,-2165.0,0.0003003,2]
[344909167,1733868644257,-2381.0,0.0003003,2]
[344909168,1733868644267,-500.0,0.00030035,10]
[344909169,1733868644278,-500.0,0.00030035,10]
[344909170,1733868644287,-150.17,0.00030035,10]
[344909171,1733868644297,-151.15346465,0.00030035,10]
[344909172,1733868644306,-150.17,0.00030035,10]
[344909173,1733868644315,-152.69360415,0.00030035,10]
[344909174,1733868644324,-150.17,0.00030035,10]
[344909175,1733868644334,-500.0,0.00030035,10]
[344909176,1733868644343,-500.0,0.00030035,10]
[344909177,1733868644352,-500.0,0.00030035,10]
[344909178,1733868644362,-500.0,0.00030035,10]
[344909179,1733868644371,-150.17,0.00030035,2]
[344909180,1733868644381,-203.87354545,0.00030035,10]
[344909181,1733868644391,-152.22478694,0.00030035,10]
[344909182,1733868644401,-160.0,0.0003004,10]
[344909183,1733868644411,-151.0,0.00030041,7]
[344909184,1733868644421,-151.0,0.00030041,7]
[344909185,1733868644430,-151.0,0.00030041,7]
[344909186,1733868644440,-151.0,0.00030041,7]
[344909187,1733868644450,-151.0,0.00030041,7]
[344909188,1733868644459,-151.0,0.00030041,7]
[344909189,1733868644468,-151.0,0.00030041,7]
[344909190,1733868644478,-151.0,0.00030041,7]
[344909191,1733868644486,-151.0,0.00030041,7]
[344909192,1733868644498,-247.018885,0.00030041,7]
[344909193,1733868644506,-151.0,0.00030041,7]
[344909194,1733868644515,-151.0,0.00030041,7]
[344909195,1733868644525,-151.0,0.00030041,7]
[344909196,1733868644535,-151.0,0.00030041,7]
[344909197,1733868644544,-151.0,0.00030041,7]
[344909198,1733868644554,-151.0,0.00030041,7]
[344909199,1733868644564,-151.0,0.00030041,7]
[344909200,1733868644573,-151.0,0.00030041,7]
[344909201,1733868644582,-151.0,0.00030041,7]
[344909202,1733868644591,-151.0,0.00030041,7]
[344909203,1733868644600,-151.0,0.00030041,7]
[344909204,1733868644610,-151.0,0.00030041,7]
[344909205,1733868644619,-151.0,0.00030041,7]
[344909206,1733868644629,-151.0,0.00030041,7]
[344909207,1733868644638,-151.0,0.00030041,7]
[344909208,1733868644647,-161.600438,0.00030041,7]
[344909209,1733868644656,-151.0,0.00030041,7]
[344909210,1733868644666,-151.0,0.00030041,7]
[344909211,1733868644676,-151.0,0.00030041,7]
[344909212,1733868644686,-151.0,0.00030041,7]
[344909213,1733868644699,-151.0,0.00030041,7]
[344909214,1733868644709,-151.0,0.00030041,7]
[344909215,1733868644718,-151.0,0.00030041,7]
[344909216,1733868644728,-151.0,0.00030041,7]
[344909217,1733868644737,-151.0,0.00030041,7]
[344909218,1733868644746,-151.0,0.00030041,7]
[344909219,1733868644755,-151.0,0.00030041,7]
[344909220,1733868644764,-151.0,0.00030041,7]
[344909221,1733868644773,-151.0,0.00030041,7]
[344909222,1733868644782,-151.0,0.00030041,7]
[344909223,1733868644791,-151.0,0.00030041,7]
[344909224,1733868644799,-151.0,0.00030041,7]
[344909225,1733868644808,-157.813886,0.00030041,7]
[344909226,1733868644817,-217.53886,0.00030041,7]
[344909227,1733868644827,-217.53886,0.00030041,7]
[344909228,1733868644836,-153.19468,0.00030041,7]
[344909229,1733868644846,-217.53886,0.00030041,7]
[344909230,1733868644855,-153.19468,0.00030041,7]
[344909231,1733868644864,-217.53886,0.00030041,7]
[344909232,1733868644874,-153.19468,0.00030041,7]
[344909233,1733868644884,-217.53886,0.00030041,7]
[344909234,1733868644893,-153.19468,0.00030041,7]
[344909235,1733868644903,-217.53886,0.00030041,7]
[344909236,1733868644914,-153.19468,0.00030041,7]
[344909237,1733868644924,-217.53886,0.00030041,7]
[344909238,1733868644934,-153.19468,0.00030041,7]
[344909239,1733868644943,-153.19468,0.00030041,7]
[344909240,1733868644955,-217.53886,0.00030041,7]
[344909241,1733868644965,-153.19468,0.00030041,7]
[344909242,1733868644975,-217.53886,0.00030041,7]
[344909243,1733868644984,-153.19468,0.00030041,7]
[344909244,1733868644993,-217.53886,0.00030041,7]
[344909245,1733868645003,-153.19468,0.00030041,7]
[344909246,1733868645012,-153.19468,0.00030041,7]
[344909247,1733868645022,-217.53886,0.00030041,7]
[344909248,1733868645031,-153.19468,0.00030041,7]
[344909249,1733868645041,-217.53886,0.00030041,7]
[344909250,1733868645050,-153.19468,0.00030041,7]
[344909251,1733868645059,-153.19468,0.00030041,7]
[344909252,1733868645068,-217.53886,0.00030041,7]
[344909253,1733868645077,-153.19468,0.00030041,7]
[344909254,1733868645086,-217.53886,0.00030041,7]
[344909255,1733868645095,-153.19468,0.00030041,7]
[344909256,1733868645104,-217.53886,0.00030041,7]
[344909257,1733868645113,-153.19468,0.00030041,7]
[344909258,1733868645123,-217.53886,0.00030041,7]
[344909259,1733868645132,-153.19468,0.00030041,7]
[344909260,1733868645141,-217.53886,0.00030041,7]
[344909262,1733868645234,-153.19468,0.00030041,7]
[344909263,1733868645244,-217.53886,0.00030041,7]
[344909264,1733868645254,-217.53886,0.00030041,7]
[344909265,1733868645264,-153.194672,0.00030041,7]
[344909266,1733868645274,-217.53886812,0.00030041,7]
[344909267,1733868645284,-151.0,0.00030041,7]
[344909268,1733868645293,-151.0,0.00030041,7]
[344909269,1733868645303,-151.0,0.00030041,7]
[344909270,1733868645313,-153.860128,0.00030041,7]
[344909271,1733868645323,-151.0,0.00030041,7]
[344909272,1733868645333,-151.0,0.00030041,7]
[344909273,1733868645342,-250.14618,0.00030041,7]
[344909274,1733868645352,-151.0,0.00030041,7]
[344909275,1733868645362,-151.0,0.00030041,7]
[344909276,1733868645372,-151.0,0.00030041,7]
[344909277,1733868645382,-151.0,0.00030041,7]
[344909278,1733868645392,-151.0,0.00030041,7]
[344909279,1733868645402,-151.0,0.00030041,7]
[344909280,1733868645412,-151.0,0.00030041,7]
[344909281,1733868645422,-151.0,0.00030041,7]
[344909282,1733868645432,-151.0,0.00030041,7]
[344909283,1733868645442,-151.0,0.00030041,7]
[344909284,1733868645455,-151.0,0.00030041,7]
[344909285,1733868645464,-151.0,0.00030041,7]
[344909286,1733868645474,-151.0,0.00030041,7]
[344909287,1733868645484,-151.0,0.00030041,7]
[344909288,1733868645494,-151.0,0.00030041,7]
[344909289,1733868645509,-151.0,0.00030041,7]
[344909290,1733868645519,-151.0,0.00030041,7]
[344909291,1733868645531,-151.0,0.00030041,7]
[344909292,1733868645540,-235.395289,0.00030041,7]
[344909293,1733868645549,-151.0,0.00030041,7]
[344909294,1733868645559,-151.0,0.00030041,7]
[344909295,1733868645569,-151.0,0.00030041,7]
[344909296,1733868645579,-151.0,0.00030041,7]
[344909297,1733868645589,-151.0,0.00030041,7]
[344909298,1733868645598,-151.0,0.00030041,7]
[344909300,1733868645607,-151.0,0.00030041,7]
[344909301,1733868645617,-151.0,0.00030041,7]
[344909302,1733868645627,-151.0,0.00030041,7]
[344909303,1733868645636,-192.984267,0.00030041,7]
[344909305,1733868645646,-151.0,0.00030041,7]
[344909307,1733868645655,-151.0,0.00030041,7]
[344909308,1733868645664,-151.0,0.00030041,7]
[344909309,1733868645674,-151.0,0.00030041,7]
[344909310,1733868645683,-424.729364,0.00030041,7]
[344909311,1733868645692,-424.729364,0.00030041,7]
[344909312,1733868645704,-424.729364,0.00030041,7]
[344909313,1733868645713,-424.729364,0.00030041,7]
[344909314,1733868645722,-424.729364,0.00030041,7]
[344909315,1733868645732,-424.729364,0.00030041,7]
[344909316,1733868645742,-424.729364,0.00030041,7]
[344909317,1733868645751,-424.729364,0.00030041,7]
[344909318,1733868645761,-424.729364,0.00030041,7]
[344909319,1733868645770,-424.729364,0.00030041,7]
[344909320,1733868645779,-424.729364,0.00030041,7]
[344909321,1733868645788,-424.729364,0.00030041,7]
[344909322,1733868645798,-424.729364,0.00030041,7]
[344909323,1733868645807,-424.729364,0.00030041,7]
[344909324,1733868645816,-424.729364,0.00030041,7]
[344909325,1733868645825,-424.729364,0.00030041,7]
[344909327,1733868645835,-424.729364,0.00030041,7]
[344909329,1733868645844,-424.729364,0.00030041,7]
[344909330,1733868645854,-424.729364,0.00030041,7]
[344909331,1733868645865,-151.0,0.00030041,7]
[344909332,1733868645874,-424.72937,0.00030041,7]
[344909333,1733868645883,-151.0,0.00030041,7]
[344909334,1733868645892,-151.0,0.00030041,7]
[344909335,1733868645901,-151.0,0.00030041,7]
[344909336,1733868645910,-151.0,0.00030041,7]
[344909337,1733868645919,-151.0,0.00030041,7]
[344909338,1733868645928,-151.0,0.00030041,7]
[344909339,1733868645937,-151.0,0.00030041,7]
[344909340,1733868645946,-151.0,0.00030041,7]
[344909341,1733868645958,-151.0,0.00030041,7]
[344909342,1733868645968,-151.0,0.00030041,7]
[344909343,1733868645977,-151.0,0.00030041,7]
[344909344,1733868645986,-151.0,0.00030041,7]
[344909345,1733868645996,-151.0,0.00030041,7]
[344909346,1733868646005,-151.0,0.00030041,7]
[344909347,1733868646014,-151.0,0.00030041,7]
[344909348,1733868646024,-250.246898,0.00030041,7]
[344909349,1733868646033,-151.0,0.00030041,7]
[344909350,1733868646043,-151.0,0.00030041,7]
[344909351,1733868646052,-151.0,0.00030041,7]
[344909352,1733868646062,-151.0,0.00030041,7]
[344909353,1733868646072,-151.0,0.00030041,7]
[344909354,1733868646081,-151.0,0.00030041,7]
[344909355,1733868646091,-151.0,0.00030041,7]
[344909356,1733868646101,-151.0,0.00030041,7]
[344909357,1733868646110,-151.0,0.00030041,7]
[344909358,1733868646120,-151.0,0.00030041,7]
[344909359,1733868646130,-151.0,0.00030041,7]
[344909360,1733868646140,-151.0,0.00030041,7]
[344909361,1733868646151,-151.0,0.00030041,7]
[344909362,1733868646160,-151.0,0.00030041,7]
[344909363,1733868646171,-151.0,0.00030041,7]
[344909364,1733868646180,-151.0,0.00030041,7]
[344909365,1733868646190,-151.0,0.00030041,7]
[344909366,1733868646203,-151.0,0.00030041,7]
[344909367,1733868646216,-151.0,0.00030041,7]
[344909368,1733868646226,-151.0,0.00030041,7]
[344909369,1733868646237,-151.0,0.00030041,7]
[344909370,1733868646246,-151.0,0.00030041,7]
[344909371,1733868646256,-151.0,0.00030041,7]
[344909372,1733868646266,-151.0,0.00030041,7]
[344909373,1733868646275,-151.0,0.00030041,7]
[344909374,1733868646285,-151.0,0.00030041,7]
[344909375,1733868646294,-249.732764,0.00030041,7]
[344909376,1733868646303,-151.0,0.00030041,7]
[344909377,1733868646313,-151.0,0.00030041,7]
[344909378,1733868646322,-151.0,0.00030041,7]
[344909379,1733868646331,-213311.31831803,0.00030041,2]
[344909380,1733868646341,-1273.99142816,0.00030041,2]
[344909381,1733868646351,-154.87609912,0.00030041,2]
[344909382,1733868646361,-2586186.6502513,0.00030041,10]
[344909383,1733868646429,-1939.96905,0.00030041,10]
[344909384,1733868646440,-1245.57378376,0.00030041,10]
[344909385,1733868646460,-151.0,0.00030041,7]
[344909386,1733868646470,-3710.74765034,0.00030041,10]
[344909387,1733868646505,-500.0,0.00029863,7]
[344909388,1733868646514,-500.0,0.00029863,7]
[344909389,1733868646524,-151.0,0.00030041,7]
[344909390,1733868646533,-151.0,0.00030041,7]
[344909391,1733868646542,-151.0,0.00030041,7]
[344909392,1733868646551,-163182.12727067,0.00030041,10]
[344909393,1733868646564,-35364.84391771,0.00030041,10]
[344909394,1733868646606,-500.0,0.00029863,7]
[344909395,1733868646615,-500.0,0.00029863,7]
[344909396,1733868646624,-538.88,0.00029863,7]
[344909397,1733868646634,-509.69505812,0.00029863,7]
[344909398,1733868646643,-151.0,0.00030041,7]
[344909399,1733868646652,-69.27458601,0.00030041,7]
[344909400,1733868646665,-81.72541399,0.00030041,7]
[344909401,1733868646674,-276.97549,0.00030041,7]
[344909402,1733868646683,-63768.97640348,0.00030041,10]
[344909403,1733868646800,-500.0,0.00028499,2]
[344909404,1733868646810,-500.0,0.00028499,2]
[344909405,1733868646819,-500.0,0.00028499,2]
[344909406,1733868646828,-319.73681626,0.00028499,2]
[344909407,1733868646840,-180.26318374,0.00028499,2]
[344909408,1733868646849,-283.74426133,0.00028499,2]
[344909409,1733868646859,-500.0,0.00028499,2]
[344909410,1733868646868,-500.0,0.00028499,2]
[344909411,1733868646877,-72.11996078,0.00028499,2]
[344909412,1733868646926,-427.88003922,0.00028499,2]
[344909413,1733868646936,-207.77642706,0.00028499,2]
[344909414,1733868646946,-88.99089188,0.00028499,2]
[344909415,1733868646964,-194.75336945,0.00028499,2]
[344909416,1733868646975,-448.20298698,0.00028499,2]
[344909417,1733868646985,-500.0,0.00028499,2]
[344909418,1733868646995,-500.0,0.00028499,2]
[344909419,1733868647004,-29.46873922,0.00028499,2]
[344909420,1733868647015,-470.53126078,0.00028499,2]
[344909421,1733868647025,-500.0,0.00028499,2]
[344909422,1733868647034,-500.0,0.00028499,2]
[344909423,1733868647043,-500.0,0.00028499,2]
[344909424,1733868647053,-500.0,0.00028499,2]
[344909425,1733868647062,-500.0,0.00028499,2]
[344909426,1733868647071,-500.0,0.00028499,2]
[344909427,1733868647081,-500.0,0.00028499,2]
[344909428,1733868647090,-500.0,0.00028499,2]
[344909429,1733868647100,-500.0,0.00028499,2]
[344909430,1733868647109,-213.5058504,0.00029205,30]
[344909431,1733868647118,-843252.44411104,0.00030041,10]
[344909432,1733868647131,-2461.60841804,0.00030041,10]
[344909433,1733868647142,-1346.89575979,0.00030041,10]
[344909434,1733868663422,2883.0,0.00026,2]
[344909435,1733868691814,165.512235,0.00013973,2]
[344909459,1733869709682,3169.35003783,0.0002,2]
[344909463,1733869720218,4899.41316658,0.0001999,2]
[344909464,1733869735634,4027.56335209,0.000202,2]
[344909467,1733869745186,-972.43664791,0.000202,2]
[344909468,1733869745210,-300.0,0.00020376,2]
[344909469,1733869745233,-300.0,0.00020376,2]
[344909470,1733869745254,-14986.38309997,0.00020377,2]
[344909471,1733869745276,-1833.43587803,0.00021,2]
[344909472,1733869745306,-1445.18760129,0.00022,2]
[344909473,1733869745328,-420.0,0.00022179,2]
[344909474,1733869745350,-420.0,0.00022414,2]
[344909475,1733869745372,-587.0,0.00024141,2]
[344909476,1733869745395,-587.0,0.00024655,2]
[344909477,1733869745526,-88991.4861728,0.0002499,5]
[344909478,1733869746319,-11134.63467587,0.0002499,5]
[344909479,1733869746341,-947.50688048,0.00025447,2]
[344909480,1733869746363,-176.905023,0.00025805,2]
[344909481,1733869746384,-259.6427729,0.00026,10]
[344909482,1733869746406,-530.96800447,0.00026,2]
[344909483,1733869746427,-512.20861782,0.00026,2]
[344909484,1733869746449,-10790.28011141,0.00026,2]
[344909485,1733869746470,-1115.42440961,0.00026,30]
[344909486,1733869748141,-847.77484417,0.00026,30]
[344909487,1733869748163,-3638.57572835,0.00026,2]
[344909488,1733869748183,-448.92,0.00026011,2]
[344909489,1733869748204,-520.235045,0.00026195,2]
[344909490,1733869748225,-823.0,0.00026277,2]
[344909491,1733869748246,-500.0,0.00026401,2]
[344909492,1733869748268,-160.009078,0.00026401,2]
[344909493,1733869748290,-1000.0,0.00026574,2]
[344909494,1733869748311,-226.878048,0.00026737,2]
[344909495,1733869748331,-87312.43644712,0.00027,2]
[344909496,1733869748352,-3621.37653774,0.00027,2]
[344909497,1733869748372,-180.14613687,0.00027,2]
[344909498,1733869751541,2899.34463,0.0002574,2]
[344909500,1733869757237,542.7944177,0.00026555,2]
[344909504,1733869774535,62.86231991,0.00013973,2]
[344909505,1733869774578,102.64991509,0.00013973,2]
[344909529,1733869832106,-1000.0,0.00027296,2]
[344909530,1733869832119,-500.0,0.00027397,2]
[344909531,1733869832129,-189.73170019,0.00027397,2]
[344909532,1733869832139,-1000.40840044,0.00027397,2]
[344909564,1733869838092,-2055.81096116,0.00027397,2]
[344909567,1733869838105,-17365.2164548,0.00027397,2]
[344909569,1733869838115,-534.90121639,0.000274,2]
[344909571,1733869838124,-300.0,0.00027499,2]
[344909573,1733869838134,-300.0,0.00027499,2]
[344909575,1733869838143,-38288.64278822,0.000275,2]
[344909577,1733869838152,-249.9655459,0.00027604,2]
[344909579,1733869838162,-161.066094,0.00027671,2]
[344909580,1733869838171,-161.066094,0.00027671,61]
[344909582,1733869838180,-161.066094,0.00027671,120]
[344909584,1733869838189,-1000.000001,0.00027673,2]
[344909586,1733869838199,-432.30272771,0.00027674,2]
[344909587,1733869838210,-24257.3244363,0.00027674,2]
[344909588,1733869838219,-160.009078,0.00027704,2]
[344909589,1733869838337,-660.0,0.00027801,2]
[344909590,1733869838347,-2475.10134386,0.00027886,2]
[344909591,1733869838357,-177.127324,0.00027905,2]
[344909592,1733869838368,-30616.33555269,0.0002799,2]
[344909593,1733869838381,-158.57191098,0.00028148,2]
[344909594,1733869838391,-211.7176723,0.00028157,2]
[344909595,1733869838401,-285.07,0.00028157,18]
[344909596,1733869838410,-155.01005404,0.00028335,2]
[344909597,1733869838420,-249.96554589,0.00028369,2]
[344909598,1733869838430,-627.151,0.0002854,2]
[344909599,1733869838440,-864.10880733,0.00029,2]
[344909600,1733869838450,-302.75782099,0.00029,2]
[344909601,1733869838460,-160.009078,0.00029006,2]
[344909602,1733869838470,-863.81210543,0.00029041,120]
[344909603,1733869838479,-186.29385973,0.00029099,2]
[344909604,1733869838493,-267.60741671,0.00029099,2]
[344909605,1733869838503,-190.42430669,0.00029099,2]
[344909606,1733869838512,-500.0,0.00029099,2]
[344909607,1733869838523,-500.0,0.00029099,2]
[344909608,1733869838533,-500.0,0.00029099,2]
[344909609,1733869838542,-500.0,0.00029099,2]
[344909610,1733869838552,-325.19579008,0.00029099,2]
[344909611,1733869838562,-306.06158957,0.00029099,2]
[344909612,1733869838572,-500.0,0.00029099,2]
[344909613,1733869838582,-500.0,0.00029099,2]
[344909614,1733869838591,-500.0,0.00029099,2]
[344909615,1733869838601,-500.0,0.00029099,2]
[344909616,1733869838611,-500.0,0.00029099,2]
[344909617,1733869838623,-293.83614789,0.00029099,2]